[Event "*** Titled Tuesday Blitz"]
[Site "Chess.com"]
[Date "2020.05.05"]
[Round "10"]
[White "bait_or_mate"]
[Black "afgano29"]
[Result "0-1"]
[WhiteElo "2533"]
[BlackElo "2694"]
[TimeControl "180+1"]
[EndTime "11:58:33 PDT"]
[Termination "afgano29 won on time"]

1. d4 {[%clk 0:03:00.9]} 1... Nf6 {[%clk 0:02:59.8]} 2. c4 {[%clk 0:03:00.5]}
2... g6 {[%clk 0:02:59.7]} 3. Nc3 {[%clk 0:02:59.5]} 3... d5 {[%clk 0:03:00.1]}
4. cxd5 {[%clk 0:02:58.3]} 4... Nxd5 {[%clk 0:03:01]} 5. e4 {[%clk 0:02:58.9]}
5... Nxc3 {[%clk 0:03:01.5]} 6. bxc3 {[%clk 0:02:59.8]} 6... c5 {[%clk
0:03:02.4]} 7. Nf3 {[%clk 0:02:59.9]} 7... Bg7 {[%clk 0:03:02.7]} 8. Bb5+ {[%clk
0:03:00.3]} 8... Nc6 {[%clk 0:03:02.2]} 9. O-O {[%clk 0:02:59.8]} 9... cxd4
{[%clk 0:02:58.5]} 10. cxd4 {[%clk 0:02:58]} 10... O-O {[%clk 0:02:58]} 11. Bxc6
{[%clk 0:02:57.9]} 11... bxc6 {[%clk 0:02:58.9]} 12. Be3 {[%clk 0:02:57.3]}
12... c5 {[%clk 0:02:53.2]} 13. dxc5 {[%clk 0:02:55.7]} 13... Bxa1 {[%clk
0:02:52.6]} 14. Qxa1 {[%clk 0:02:56.6]} 14... f6 {[%clk 0:02:52.3]} 15. Rd1
{[%clk 0:02:53.2]} 15... Qc7 {[%clk 0:02:50.4]} 16. Qd4 {[%clk 0:02:42.9]} 16...
Be6 {[%clk 0:02:48]} 17. Qa4 {[%clk 0:02:36.1]} 17... Rfd8 {[%clk 0:02:28.2]}
18. Rc1 {[%clk 0:01:48]} 18... Bd7 {[%clk 0:02:13.8]} 19. Qc4+ {[%clk
0:01:46.6]} 19... Kg7 {[%clk 0:02:12.5]} 20. Nd4 {[%clk 0:01:22]} 20... e5
{[%clk 0:02:09.4]} 21. Ne2 {[%clk 0:01:01.8]} 21... Qc6 {[%clk 0:02:05.6]} 22.
Nc3 {[%clk 0:01:00.9]} 22... Be6 {[%clk 0:02:03.4]} 23. Qb5 {[%clk 0:00:51.3]}
23... Rdc8 {[%clk 0:01:34.1]} 24. Qxc6 {[%clk 0:00:41.3]} 24... Rxc6 {[%clk
0:01:34.8]} 25. Nd5 {[%clk 0:00:39.4]} 25... Rb8 {[%clk 0:01:29.7]} 26. h3
{[%clk 0:00:33.1]} 26... Kf7 {[%clk 0:01:26.6]} 27. a3 {[%clk 0:00:32.2]} 27...
a5 {[%clk 0:01:25]} 28. Nb6 {[%clk 0:00:29.6]} 28... Rd8 {[%clk 0:01:21.4]} 29.
Nc4 {[%clk 0:00:18.8]} 29... Bxc4 {[%clk 0:01:17.1]} 30. Rxc4 {[%clk 0:00:19.7]}
30... Rd3 {[%clk 0:01:12.8]} 31. a4 {[%clk 0:00:11.2]} 31... Ke6 {[%clk
0:01:11.5]} 32. Kf1 {[%clk 0:00:05.6]} 32... f5 {[%clk 0:01:05.6]} 0-1

[Event "*** Titled Tuesday Blitz"]
[Site "Chess.com"]
[Date "2020.05.05"]
[Round "10"]
[White "suneebaker"]
[Black "ahachess"]
[Result "1/2-1/2"]
[WhiteElo "2194"]
[BlackElo "2351"]
[TimeControl "180+1"]
[EndTime "11:58:36 PDT"]
[Termination "Game drawn by repetition"]

1. d4 {[%clk 0:03:00.9]} 1... Nf6 {[%clk 0:02:58.2]} 2. Nf3 {[%clk 0:03:00.6]}
2... g6 {[%clk 0:02:57.1]} 3. g3 {[%clk 0:03:00.5]} 3... Bg7 {[%clk 0:02:57.4]}
4. Bg2 {[%clk 0:03:00.5]} 4... O-O {[%clk 0:02:57.4]} 5. O-O {[%clk 0:03:00.4]}
5... d6 {[%clk 0:02:57.2]} 6. c4 {[%clk 0:03:00.2]} 6... Nc6 {[%clk 0:02:57.5]}
7. Nc3 {[%clk 0:03:00.1]} 7... Bg4 {[%clk 0:02:56.7]} 8. h3 {[%clk 0:02:52.1]}
8... Bxf3 {[%clk 0:02:55.5]} 9. Bxf3 {[%clk 0:02:52.2]} 9... Nd7 {[%clk
0:02:55.6]} 10. Be3 {[%clk 0:02:48.7]} 10... e5 {[%clk 0:02:51.6]} 11. dxe5
{[%clk 0:02:43.9]} 11... Ndxe5 {[%clk 0:02:46.9]} 12. Bd5 {[%clk 0:02:43]} 12...
Qc8 {[%clk 0:02:34.7]} 13. Kh2 {[%clk 0:02:41.5]} 13... Ne7 {[%clk 0:02:34.1]}
14. f4 {[%clk 0:02:22]} 14... Nd7 {[%clk 0:01:57.1]} 15. Bg2 {[%clk 0:02:17.1]}
15... Nf5 {[%clk 0:01:42.7]} 16. Bf2 {[%clk 0:02:13.7]} 16... Nb6 {[%clk
0:01:40.8]} 17. e4 {[%clk 0:02:09.7]} 17... Ne7 {[%clk 0:01:40]} 18. Qe2 {[%clk
0:02:01.2]} 18... Qe6 {[%clk 0:01:33.3]} 19. Nd5 {[%clk 0:01:55.9]} 19... Nexd5
{[%clk 0:01:29.6]} 20. cxd5 {[%clk 0:01:55.4]} 20... Nxd5 {[%clk 0:01:26]} 21.
Qc4 {[%clk 0:01:48.1]} 21... Nxf4 {[%clk 0:01:23.6]} 22. Qxe6 {[%clk 0:01:44.1]}
22... Nxe6 {[%clk 0:01:22.9]} 23. Rab1 {[%clk 0:01:40.9]} 23... a5 {[%clk
0:01:18.4]} 24. Rfc1 {[%clk 0:01:36.5]} 24... Rab8 {[%clk 0:01:00.8]} 25. Rc4
{[%clk 0:01:28]} 25... Be5 {[%clk 0:00:57.6]} 26. b4 {[%clk 0:01:23.6]} 26...
axb4 {[%clk 0:00:51]} 27. Rcxb4 {[%clk 0:01:23.7]} 27... b6 {[%clk 0:00:50.3]}
28. a4 {[%clk 0:01:23.1]} 28... Ra8 {[%clk 0:00:50.2]} 29. Bf1 {[%clk
0:01:22.4]} 29... Ra5 {[%clk 0:00:43.2]} 30. Bb5 {[%clk 0:01:20.8]} 30... Rc8
{[%clk 0:00:37.2]} 31. Rc4 {[%clk 0:01:19.3]} 31... Nc5 {[%clk 0:00:28]} 32. Be1
{[%clk 0:01:14.8]} 32... Ra7 {[%clk 0:00:24.7]} 33. Bc6 {[%clk 0:01:08.3]} 33...
Rd8 {[%clk 0:00:19.4]} 34. Kg2 {[%clk 0:01:07.3]} 34... Kg7 {[%clk 0:00:19.1]}
35. Bf2 {[%clk 0:01:06.5]} 35... Ra5 {[%clk 0:00:18.2]} 36. Bb5 {[%clk
0:01:03.1]} 36... Rc8 {[%clk 0:00:16.7]} 37. Bc6 {[%clk 0:01:02.5]} 37... Rd8
{[%clk 0:00:16.7]} 38. Bb5 {[%clk 0:01:02.1]} 38... Rc8 {[%clk 0:00:16.3]} 39.
Bc6 {[%clk 0:01:01.9]} 39... Rd8 {[%clk 0:00:16.4]} 1/2-1/2

[Event "*** Titled Tuesday Blitz"]
[Site "Chess.com"]
[Date "2020.05.05"]
[Round "10"]
[White "Xeniya2005"]
[Black "Gromes7"]
[Result "1-0"]
[WhiteElo "2286"]
[BlackElo "2119"]
[TimeControl "180+1"]
[EndTime "11:58:36 PDT"]
[Termination "Xeniya2005 won by resignation"]

1. e4 {[%clk 0:03:00.9]} 1... c5 {[%clk 0:02:59]} 2. Nf3 {[%clk 0:03:00.4]} 2...
a6 {[%clk 0:02:59.2]} 3. Nc3 {[%clk 0:02:56.6]} 3... Nc6 {[%clk 0:02:57.5]} 4.
d4 {[%clk 0:02:56]} 4... cxd4 {[%clk 0:02:57.6]} 5. Nxd4 {[%clk 0:02:56.9]} 5...
e5 {[%clk 0:02:57.4]} 6. Nf5 {[%clk 0:02:51.7]} 6... d6 {[%clk 0:02:54.4]} 7.
Ne3 {[%clk 0:02:47.6]} 7... Be6 {[%clk 0:02:50.6]} 8. Ned5 {[%clk 0:02:35.1]}
8... h6 {[%clk 0:02:47.7]} 9. Be3 {[%clk 0:02:33.4]} 9... Nf6 {[%clk 0:02:47.1]}
10. Bb6 {[%clk 0:02:30.2]} 10... Qc8 {[%clk 0:02:31.5]} 11. Nc7+ {[%clk
0:02:24.6]} 11... Kd7 {[%clk 0:02:31]} 12. Nxa8 {[%clk 0:02:24.5]} 12... Qxa8
{[%clk 0:02:30.7]} 13. Be2 {[%clk 0:02:22.7]} 13... Be7 {[%clk 0:02:24.8]} 14.
O-O {[%clk 0:02:20.3]} 14... Rc8 {[%clk 0:02:23.9]} 15. Qd2 {[%clk 0:02:15.6]}
15... Ke8 {[%clk 0:02:23.2]} 16. Rad1 {[%clk 0:02:13.7]} 16... Kf8 {[%clk
0:01:50.2]} 17. Rfe1 {[%clk 0:02:08.3]} 17... Qb8 {[%clk 0:01:39.6]} 18. Bf1
{[%clk 0:02:06.2]} 18... Nd7 {[%clk 0:01:33]} 19. Be3 {[%clk 0:02:02.5]} 19...
b5 {[%clk 0:01:32.3]} 20. Nd5 {[%clk 0:01:57.4]} 20... Bxd5 {[%clk 0:01:26.3]}
21. exd5 {[%clk 0:01:58.3]} 21... Nd8 {[%clk 0:01:21.1]} 22. a4 {[%clk
0:01:51.6]} 22... Nf6 {[%clk 0:01:11]} 23. axb5 {[%clk 0:01:48.7]} 23... axb5
{[%clk 0:01:11.9]} 24. f3 {[%clk 0:01:41.9]} 24... Qb7 {[%clk 0:01:09.8]} 25. c3
{[%clk 0:01:32.8]} 25... Qd7 {[%clk 0:01:09.3]} 26. Ra1 {[%clk 0:01:30.4]} 26...
Nb7 {[%clk 0:01:08.6]} 27. Ra7 {[%clk 0:01:29.4]} 27... Rb8 {[%clk 0:01:08]} 28.
Rea1 {[%clk 0:01:27.4]} 28... Qc8 {[%clk 0:01:07.5]} 29. R1a6 {[%clk 0:01:18.7]}
29... Nc5 {[%clk 0:01:06.8]} 30. Rc6 {[%clk 0:01:18.2]} 30... Qd8 {[%clk
0:01:00.6]} 31. Bxc5 {[%clk 0:01:17.7]} 31... dxc5 {[%clk 0:00:53.3]} 32. d6
{[%clk 0:01:17.6]} 32... Kg8 {[%clk 0:00:42.6]} 33. Rxe7 {[%clk 0:01:10.9]}
33... e4 {[%clk 0:00:41.1]} 34. fxe4 {[%clk 0:01:09.7]} 34... b4 {[%clk
0:00:34.1]} 35. Rcc7 {[%clk 0:01:07.7]} 35... bxc3 {[%clk 0:00:32.7]} 36. bxc3
{[%clk 0:01:07.2]} 36... Rb1 {[%clk 0:00:26.4]} 37. Rxf7 {[%clk 0:01:04]} 37...
Qa8 {[%clk 0:00:24]} 38. Rxg7+ {[%clk 0:01:00.8]} 38... Kf8 {[%clk 0:00:21.5]}
39. Rcf7+ {[%clk 0:01:00.1]} 39... Ke8 {[%clk 0:00:20.5]} 40. d7+ {[%clk
0:00:59.6]} 40... Kd8 {[%clk 0:00:18.5]} 41. Rf8+ {[%clk 0:00:59.3]} 41... Kc7
{[%clk 0:00:18.7]} 42. d8=Q+ {[%clk 0:00:59.3]} 1-0

[Event "*** Titled Tuesday Blitz"]
[Site "Chess.com"]
[Date "2020.05.05"]
[Round "10"]
[White "m_ezat"]
[Black "AVolodin"]
[Result "1-0"]
[WhiteElo "2514"]
[BlackElo "2664"]
[TimeControl "180+1"]
[EndTime "11:58:38 PDT"]
[Termination "m_ezat won on time"]

1. d4 {[%clk 0:03:00.9]} 1... Nf6 {[%clk 0:02:51.7]} 2. c4 {[%clk 0:03:00.6]}
2... c5 {[%clk 0:02:51.6]} 3. d5 {[%clk 0:02:59.9]} 3... b5 {[%clk 0:02:51.6]}
4. cxb5 {[%clk 0:03:00.5]} 4... a6 {[%clk 0:02:51.8]} 5. Nc3 {[%clk 0:03:01.1]}
5... axb5 {[%clk 0:02:51.7]} 6. e4 {[%clk 0:03:01.7]} 6... b4 {[%clk 0:02:51.7]}
7. Nb5 {[%clk 0:03:02.3]} 7... d6 {[%clk 0:02:50.8]} 8. Bf4 {[%clk 0:03:01.3]}
8... g5 {[%clk 0:02:49.3]} 9. Bxg5 {[%clk 0:03:01]} 9... Nxe4 {[%clk 0:02:49.6]}
10. Bf4 {[%clk 0:03:00.6]} 10... Bg7 {[%clk 0:02:48.1]} 11. Qe2 {[%clk 0:03:00]}
11... Nf6 {[%clk 0:02:24.6]} 12. Nxd6+ {[%clk 0:03:00.1]} 12... Kf8 {[%clk
0:02:24.9]} 13. Nxc8 {[%clk 0:03:00.4]} 13... Qxc8 {[%clk 0:02:24.8]} 14. Qf3
{[%clk 0:03:00.5]} 14... Nbd7 {[%clk 0:02:09.7]} 15. d6 {[%clk 0:02:44.2]} 15...
e5 {[%clk 0:02:08.3]} 16. Bg5 {[%clk 0:02:41]} 16... e4 {[%clk 0:02:07]} 17. Qh3
{[%clk 0:02:39.9]} 17... Qc6 {[%clk 0:02:03.3]} 18. Ne2 {[%clk 0:02:29.7]} 18...
Qxd6 {[%clk 0:02:00.4]} 19. Ng3 {[%clk 0:02:29.2]} 19... Qe5 {[%clk 0:01:56.6]}
20. Bh6 {[%clk 0:02:02.8]} 20... Rg8 {[%clk 0:01:36.8]} 21. Bb5 {[%clk
0:01:47.2]} 21... Nb6 {[%clk 0:01:02.4]} 22. Nf5 {[%clk 0:01:37.5]} 22... Nbd5
{[%clk 0:00:35]} 23. Nxg7 {[%clk 0:01:13.2]} 23... Rxg7 {[%clk 0:00:31]} 24. O-O
{[%clk 0:01:02.2]} 24... Nf4 {[%clk 0:00:27.1]} 25. Qh4 {[%clk 0:00:47.9]} 25...
Ng6 {[%clk 0:00:15.3]} 26. Qg3 {[%clk 0:00:47.4]} 26... Qxb2 {[%clk 0:00:13.6]}
27. Rac1 {[%clk 0:00:37.9]} 27... Qxa2 {[%clk 0:00:05.6]} 28. Qd6+ {[%clk
0:00:35.2]} 28... Kg8 {[%clk 0:00:05.5]} 29. Qxf6 {[%clk 0:00:35.1]} 1-0

[Event "*** Titled Tuesday Blitz"]
[Site "Chess.com"]
[Date "2020.05.05"]
[Round "10"]
[White "Balla_Tamas"]
[Black "MFguimaraes"]
[Result "0-1"]
[WhiteElo "2537"]
[BlackElo "2422"]
[TimeControl "180+1"]
[EndTime "11:58:42 PDT"]
[Termination "MFguimaraes won by checkmate"]

1. e4 {[%clk 0:03:00.9]} 1... e5 {[%clk 0:02:58.9]} 2. Nf3 {[%clk 0:03:00.7]}
2... Nc6 {[%clk 0:02:58.5]} 3. d4 {[%clk 0:02:59.9]} 3... exd4 {[%clk
0:02:58.4]} 4. Nxd4 {[%clk 0:03:00.4]} 4... Bb4+ {[%clk 0:02:59]} 5. c3 {[%clk
0:02:59.4]} 5... Bc5 {[%clk 0:02:59.4]} 6. Nb3 {[%clk 0:02:59.2]} 6... Bb6
{[%clk 0:02:59.2]} 7. Bc4 {[%clk 0:02:59]} 7... Nf6 {[%clk 0:02:59.1]} 8. Qe2
{[%clk 0:02:57.9]} 8... O-O {[%clk 0:02:58.1]} 9. Bg5 {[%clk 0:02:54.2]} 9... h6
{[%clk 0:02:54.6]} 10. Bxf6 {[%clk 0:02:53.5]} 10... Qxf6 {[%clk 0:02:54.1]} 11.
N1d2 {[%clk 0:02:54.2]} 11... a5 {[%clk 0:02:45.7]} 12. a4 {[%clk 0:02:52.2]}
12... Ne5 {[%clk 0:02:43]} 13. O-O {[%clk 0:02:45.9]} 13... d6 {[%clk
0:02:41.5]} 14. Kh1 {[%clk 0:02:43.3]} 14... Bd7 {[%clk 0:02:37.8]} 15. Nd4
{[%clk 0:02:37.7]} 15... Nxc4 {[%clk 0:02:33.6]} 16. Qxc4 {[%clk 0:02:35.9]}
16... Rfe8 {[%clk 0:02:29.3]} 17. f3 {[%clk 0:02:32.2]} 17... Be6 {[%clk
0:02:16.4]} 18. Nxe6 {[%clk 0:02:29]} 18... Qxe6 {[%clk 0:02:16.3]} 19. Rfd1
{[%clk 0:02:27.5]} 19... Rad8 {[%clk 0:02:14.1]} 20. Qxe6 {[%clk 0:02:26.2]}
20... fxe6 {[%clk 0:02:13.9]} 21. Nc4 {[%clk 0:02:26.7]} 21... d5 {[%clk
0:02:13.8]} 22. Nxb6 {[%clk 0:02:25.9]} 22... cxb6 {[%clk 0:02:14.7]} 23. e5
{[%clk 0:02:20.4]} 23... Rc8 {[%clk 0:02:11]} 24. Rd4 {[%clk 0:02:17.9]} 24...
Rc5 {[%clk 0:02:10.7]} 25. Ra3 {[%clk 0:02:16.8]} 25... Rec8 {[%clk 0:02:10]}
26. Rb3 {[%clk 0:02:16.5]} 26... R8c6 {[%clk 0:01:57.1]} 27. Kg1 {[%clk
0:02:16.3]} 27... g5 {[%clk 0:01:56.2]} 28. Kf2 {[%clk 0:02:15.6]} 28... Kf7
{[%clk 0:01:56.8]} 29. g3 {[%clk 0:02:16]} 29... Kg6 {[%clk 0:01:56.9]} 30. Ke3
{[%clk 0:02:10.2]} 30... Kf5 {[%clk 0:01:57]} 31. f4 {[%clk 0:02:09.4]} 31...
Rc4 {[%clk 0:01:46]} 32. Kf3 {[%clk 0:01:58.5]} 32... gxf4 {[%clk 0:01:27.5]}
33. Rxf4+ {[%clk 0:01:47.5]} 33... Rxf4+ {[%clk 0:01:27]} 34. gxf4 {[%clk
0:01:46.8]} 34... Rc4 {[%clk 0:01:27.2]} 35. Rxb6 {[%clk 0:01:46.4]} 35... Rxf4+
{[%clk 0:01:27.3]} 36. Ke3 {[%clk 0:01:45.3]} 36... Rxa4 {[%clk 0:01:20.9]} 37.
Rxb7 {[%clk 0:01:43.7]} 37... Rh4 {[%clk 0:01:18.8]} 38. Ra7 {[%clk 0:01:37.4]}
38... a4 {[%clk 0:01:16.4]} 39. Kd3 {[%clk 0:01:34.3]} 39... Kxe5 {[%clk
0:01:16.4]} 40. Ra6 {[%clk 0:01:31]} 40... Rh3+ {[%clk 0:01:16.2]} 41. Kc2
{[%clk 0:01:29.7]} 41... Rxh2+ {[%clk 0:01:16.6]} 42. Kd3 {[%clk 0:01:29.7]}
42... Rh4 {[%clk 0:01:12.8]} 43. Ke3 {[%clk 0:01:29.3]} 43... Rf4 {[%clk
0:01:05.4]} 44. Ra8 {[%clk 0:01:19]} 44... h5 {[%clk 0:01:05.2]} 45. Rh8 {[%clk
0:01:18]} 45... Re4+ {[%clk 0:01:05.6]} 46. Kd3 {[%clk 0:01:16]} 46... h4 {[%clk
0:01:05.9]} 47. Rh5+ {[%clk 0:01:14.1]} 47... Kd6 {[%clk 0:01:02.3]} 48. Rh8
{[%clk 0:01:10.1]} 48... Rg4 {[%clk 0:01:01.6]} 49. Kc2 {[%clk 0:01:09.5]} 49...
Rg2+ {[%clk 0:01:01]} 50. Kb1 {[%clk 0:01:08.9]} 50... Rh2 {[%clk 0:00:57.5]}
51. Ka2 {[%clk 0:01:08.9]} 51... e5 {[%clk 0:00:56.2]} 52. Ka3 {[%clk
0:01:09.1]} 52... e4 {[%clk 0:00:55.8]} 53. Kxa4 {[%clk 0:01:09.5]} 53... Rxb2
{[%clk 0:00:55.1]} 54. Rxh4 {[%clk 0:01:08.4]} 54... Kc5 {[%clk 0:00:55.4]} 55.
Ka3 {[%clk 0:01:06]} 55... Rb8 {[%clk 0:00:51.6]} 56. Rh7 {[%clk 0:01:05.7]}
56... Kc4 {[%clk 0:00:50.3]} 57. Rc7+ {[%clk 0:01:05.3]} 57... Kd3 {[%clk
0:00:50.7]} 58. Rd7 {[%clk 0:01:02.6]} 58... Kxc3 {[%clk 0:00:49.6]} 59. Rxd5
{[%clk 0:01:00.2]} 59... Ra8+ {[%clk 0:00:48.6]} 60. Ra5 {[%clk 0:00:59.7]}
60... Rxa5# {[%clk 0:00:49.5]} 0-1

[Event "*** Titled Tuesday Blitz"]
[Site "Chess.com"]
[Date "2020.05.05"]
[Round "10"]
[White "Paladin61"]
[Black "kleopl"]
[Result "1-0"]
[WhiteElo "2675"]
[BlackElo "2469"]
[TimeControl "180+1"]
[EndTime "11:58:43 PDT"]
[Termination "Paladin61 won by resignation"]

1. d4 {[%clk 0:03:00.9]} 1... Nf6 {[%clk 0:02:59.1]} 2. c4 {[%clk 0:03:00.3]}
2... g6 {[%clk 0:02:59.2]} 3. g3 {[%clk 0:03:00.4]} 3... Bg7 {[%clk 0:02:59.1]}
4. Bg2 {[%clk 0:03:00.7]} 4... O-O {[%clk 0:02:59.2]} 5. Nc3 {[%clk 0:03:00.9]}
5... c6 {[%clk 0:02:58.7]} 6. e4 {[%clk 0:02:52.4]} 6... d5 {[%clk 0:02:47.1]}
7. cxd5 {[%clk 0:02:47.9]} 7... cxd5 {[%clk 0:02:46.2]} 8. e5 {[%clk 0:02:41.1]}
8... Ne4 {[%clk 0:02:39.9]} 9. Nge2 {[%clk 0:02:29.4]} 9... Nxc3 {[%clk
0:02:12.4]} 10. Nxc3 {[%clk 0:02:27.6]} 10... e6 {[%clk 0:01:55.2]} 11. Be3
{[%clk 0:02:07.3]} 11... b6 {[%clk 0:01:54.3]} 12. h4 {[%clk 0:01:42.1]} 12...
f5 {[%clk 0:01:00.1]} 13. Qd2 {[%clk 0:01:29.5]} 13... Ba6 {[%clk 0:00:56.9]}
14. h5 {[%clk 0:01:27.5]} 14... Nc6 {[%clk 0:00:55.2]} 15. h6 {[%clk 0:01:15.7]}
15... Bh8 {[%clk 0:00:54.2]} 16. Bf1 {[%clk 0:01:11.6]} 16... Bxf1 {[%clk
0:00:50.6]} 17. Kxf1 {[%clk 0:01:11.4]} 17... Bxe5 {[%clk 0:00:38.1]} 18. dxe5
{[%clk 0:01:00]} 18... d4 {[%clk 0:00:38.4]} 19. Rd1 {[%clk 0:00:45.4]} 19...
dxe3 {[%clk 0:00:34.3]} 20. Qxe3 {[%clk 0:00:43]} 20... Qc7 {[%clk 0:00:30.5]}
21. Rd6 {[%clk 0:00:36.4]} 21... Rfe8 {[%clk 0:00:30.4]} 22. Kg2 {[%clk
0:00:28.7]} 22... Rad8 {[%clk 0:00:28.5]} 23. Rhd1 {[%clk 0:00:27.5]} 23... Nb4
{[%clk 0:00:17.4]} 24. Kg1 {[%clk 0:00:24.4]} 24... Qc8 {[%clk 0:00:09.9]} 25.
Qg5 {[%clk 0:00:23]} 25... Rxd6 {[%clk 0:00:09]} 26. Rxd6 {[%clk 0:00:21.6]}
26... Nc6 {[%clk 0:00:08.9]} 27. Qf6 {[%clk 0:00:18.2]} 27... Qc7 {[%clk
0:00:09]} 28. Rxc6 {[%clk 0:00:17.8]} 1-0

[Event "*** Titled Tuesday Blitz"]
[Site "Chess.com"]
[Date "2020.05.05"]
[Round "10"]
[White "Frogo47"]
[Black "atwalcb"]
[Result "1-0"]
[WhiteElo "2402"]
[BlackElo "2236"]
[TimeControl "180+1"]
[EndTime "11:58:45 PDT"]
[Termination "Frogo47 won by resignation"]

1. e4 {[%clk 0:03:00.9]} 1... d6 {[%clk 0:03:00.1]} 2. d4 {[%clk 0:03:00.4]}
2... Nf6 {[%clk 0:02:59]} 3. Nc3 {[%clk 0:03:00.6]} 3... Nbd7 {[%clk 0:02:58.6]}
4. Nf3 {[%clk 0:02:56.9]} 4... e5 {[%clk 0:02:57.9]} 5. Bc4 {[%clk 0:02:56.7]}
5... Be7 {[%clk 0:02:58.1]} 6. O-O {[%clk 0:02:56.1]} 6... O-O {[%clk
0:02:57.8]} 7. Re1 {[%clk 0:02:56.2]} 7... c6 {[%clk 0:02:57.3]} 8. a4 {[%clk
0:02:56.1]} 8... b6 {[%clk 0:02:56.7]} 9. Ba2 {[%clk 0:02:53.2]} 9... a6 {[%clk
0:02:55.9]} 10. h3 {[%clk 0:02:51.2]} 10... Bb7 {[%clk 0:02:56]} 11. Be3 {[%clk
0:02:48.7]} 11... b5 {[%clk 0:02:55.6]} 12. b4 {[%clk 0:02:46.8]} 12... Qc7
{[%clk 0:02:50.9]} 13. Nh4 {[%clk 0:02:43.5]} 13... Rfe8 {[%clk 0:02:50.4]} 14.
Nf5 {[%clk 0:02:42.4]} 14... Bf8 {[%clk 0:02:50.1]} 15. Qf3 {[%clk 0:02:31.7]}
15... exd4 {[%clk 0:02:30.4]} 16. Bxd4 {[%clk 0:02:30.6]} 16... Ne5 {[%clk
0:02:30.8]} 17. Qg3 {[%clk 0:02:17.8]} 17... Kh8 {[%clk 0:02:19.4]} 18. f4
{[%clk 0:02:07.8]} 18... Ng6 {[%clk 0:02:10.7]} 19. h4 {[%clk 0:01:22.2]} 19...
Nh5 {[%clk 0:02:09.5]} 20. Qg4 {[%clk 0:01:16.5]} 20... Ngxf4 {[%clk 0:01:41.8]}
21. Nxg7 {[%clk 0:01:01.2]} 21... Bxg7 {[%clk 0:01:38]} 22. Bxg7+ {[%clk
0:00:58.7]} 22... Nxg7 {[%clk 0:01:38]} 23. Qxf4 {[%clk 0:00:59]} 23... Re5
{[%clk 0:01:37]} 24. Rad1 {[%clk 0:00:44.9]} 24... Ne6 {[%clk 0:01:27.9]} 25.
Qf6+ {[%clk 0:00:40.5]} 25... Ng7 {[%clk 0:01:26.1]} 26. Rxd6 {[%clk 0:00:24.9]}
26... Qe7 {[%clk 0:01:21.9]} 27. Red1 {[%clk 0:00:13]} 27... Re8 {[%clk
0:01:11]} 28. Qxe7 {[%clk 0:00:12.4]} 28... R5xe7 {[%clk 0:01:10]} 29. Rd7
{[%clk 0:00:12]} 29... bxa4 {[%clk 0:01:08.6]} 30. Bxf7 {[%clk 0:00:11.5]} 30...
Rxd7 {[%clk 0:01:05.4]} 31. Rxd7 {[%clk 0:00:11.3]} 31... Rb8 {[%clk 0:01:03.8]}
32. Nxa4 {[%clk 0:00:11.5]} 32... Ba8 {[%clk 0:01:00]} 33. Nc5 {[%clk
0:00:10.2]} 33... Ne8 {[%clk 0:01:00]} 34. Bxe8 {[%clk 0:00:09.5]} 34... Rxe8
{[%clk 0:01:00]} 35. c3 {[%clk 0:00:09.8]} 35... Kg8 {[%clk 0:00:59.6]} 36. Kf2
{[%clk 0:00:10]} 36... Kf8 {[%clk 0:00:59.2]} 37. Ke3 {[%clk 0:00:10.1]} 37...
Kg8 {[%clk 0:00:59.4]} 38. g4 {[%clk 0:00:09.3]} 38... Rb8 {[%clk 0:00:54.7]}
39. Ra7 {[%clk 0:00:08.7]} 39... Re8 {[%clk 0:00:52.9]} 40. h5 {[%clk
0:00:08.5]} 40... h6 {[%clk 0:00:52.2]} 41. Nd7 {[%clk 0:00:07.7]} 1-0

[Event "*** Titled Tuesday Blitz"]
[Site "Chess.com"]
[Date "2020.05.05"]
[Round "10"]
[White "Gordima"]
[Black "Gennady_Kozlov"]
[Result "0-1"]
[WhiteElo "2769"]
[BlackElo "2605"]
[TimeControl "180+1"]
[EndTime "11:58:47 PDT"]
[Termination "Gennady_Kozlov won by resignation"]

1. d4 {[%clk 0:03:00.9]} 1... e6 {[%clk 0:02:59.5]} 2. c4 {[%clk 0:02:57]} 2...
b6 {[%clk 0:02:59]} 3. Nc3 {[%clk 0:02:52.3]} 3... Bb7 {[%clk 0:02:59]} 4. e4
{[%clk 0:02:52.4]} 4... Bb4 {[%clk 0:02:58.4]} 5. Qc2 {[%clk 0:02:48.5]} 5...
Qh4 {[%clk 0:02:54.1]} 6. Bd3 {[%clk 0:02:46.6]} 6... f5 {[%clk 0:02:51.3]} 7.
g3 {[%clk 0:02:34.8]} 7... Qe7 {[%clk 0:02:48.2]} 8. Ne2 {[%clk 0:02:29.4]} 8...
Nf6 {[%clk 0:02:39]} 9. f3 {[%clk 0:02:21.1]} 9... Bxc3+ {[%clk 0:02:33.9]} 10.
bxc3 {[%clk 0:02:17.2]} 10... fxe4 {[%clk 0:02:32.1]} 11. fxe4 {[%clk
0:02:16.7]} 11... e5 {[%clk 0:02:32]} 12. O-O {[%clk 0:02:03.9]} 12... d6 {[%clk
0:02:30.6]} 13. Bg5 {[%clk 0:02:02.9]} 13... Nbd7 {[%clk 0:02:31.1]} 14. a4
{[%clk 0:01:58.5]} 14... a5 {[%clk 0:02:29.8]} 15. c5 {[%clk 0:01:51.5]} 15...
bxc5 {[%clk 0:02:28.1]} 16. d5 {[%clk 0:01:51.2]} 16... h6 {[%clk 0:02:24.1]}
17. Bd2 {[%clk 0:01:36.2]} 17... Ba6 {[%clk 0:02:24]} 18. c4 {[%clk 0:01:24.8]}
18... Bc8 {[%clk 0:02:22.8]} 19. Nc3 {[%clk 0:01:12.5]} 19... O-O {[%clk
0:02:18.9]} 20. Nb5 {[%clk 0:01:11.8]} 20... Nb6 {[%clk 0:02:18.8]} 21. Bc3
{[%clk 0:01:11.9]} 21... Bh3 {[%clk 0:02:15.5]} 22. Rf3 {[%clk 0:01:03.9]} 22...
Ng4 {[%clk 0:02:14.8]} 23. Be2 {[%clk 0:00:22.1]} 23... Nxc4 {[%clk 0:01:51.3]}
24. Rxf8+ {[%clk 0:00:18.8]} 24... Rxf8 {[%clk 0:01:50.5]} 25. Bxc4 {[%clk
0:00:19.6]} 25... Rf2 {[%clk 0:01:50.2]} 26. Qxf2 {[%clk 0:00:19.7]} 26... Nxf2
{[%clk 0:01:50.1]} 27. Kxf2 {[%clk 0:00:20.6]} 27... Qf6+ {[%clk 0:01:50.3]} 28.
Ke3 {[%clk 0:00:15.8]} 28... Qg5+ {[%clk 0:01:44.5]} 29. Kd3 {[%clk 0:00:16.2]}
29... Qg4 {[%clk 0:01:42]} 30. Re1 {[%clk 0:00:12]} 30... Qf3+ {[%clk
0:01:38.1]} 31. Kd2 {[%clk 0:00:12.5]} 31... Bg4 {[%clk 0:01:33.8]} 32. Kc2
{[%clk 0:00:10.8]} 32... Qf2+ {[%clk 0:01:31.5]} 33. Kb3 {[%clk 0:00:10.7]}
33... Qxh2 {[%clk 0:01:30.5]} 34. Bxa5 {[%clk 0:00:10.2]} 34... Qxg3+ {[%clk
0:01:30.5]} 35. Bc3 {[%clk 0:00:10.6]} 35... h5 {[%clk 0:01:23.9]} 36. a5 {[%clk
0:00:10.9]} 36... Bc8 {[%clk 0:01:23.9]} 37. Nxc7 {[%clk 0:00:11.1]} 37... h4
{[%clk 0:01:23]} 38. a6 {[%clk 0:00:10.7]} 38... Bxa6 {[%clk 0:01:20.9]} 39.
Bxa6 {[%clk 0:00:09.8]} 39... h3 {[%clk 0:01:21.5]} 40. Nb5 {[%clk 0:00:04.4]}
40... h2 {[%clk 0:01:19.9]} 41. Nxd6 {[%clk 0:00:04.4]} 41... Qxe1 {[%clk
0:01:19.3]} 42. Bxe1 {[%clk 0:00:05.3]} 42... h1=Q {[%clk 0:01:19.6]} 43. Bc3
{[%clk 0:00:04.5]} 43... Qb1+ {[%clk 0:01:10.7]} 44. Bb2 {[%clk 0:00:04.7]}
44... Qd1+ {[%clk 0:01:09.4]} 45. Ka3 {[%clk 0:00:05.1]} 45... Qf3+ {[%clk
0:01:04.9]} 46. Ka4 {[%clk 0:00:04]} 46... Qf6 {[%clk 0:01:04.1]} 47. Nc4 {[%clk
0:00:01.7]} 47... Qxa6+ {[%clk 0:01:03.5]} 0-1